bitfinex-derivatives/quotes_ETHF0:USTF0_20220108
["timestamp","ask_amount","ask_price","bid_price","bid_amount"]
[1641605258483,0.905575,3222.2,3220.9,3.74224986]
[1641605258484,1.40124616,3222.2,3220.9,3.74224986]
[1641605259085,1.40124616,3222.2,3221.0,4.966553]
[1641605259484,0.49567116,3222.1,3221.0,4.966553]
[1641605259685,0.49567116,3222.1,3221.1,1.48624724]
[1641605259886,2.00479,3221.9,3221.1,1.48624724]
[1641605261192,2.00479,3222.3,3221.8,1.5]
[1641605261390,1.29220755,3222.6,3221.8,2.2017]
[1641605261595,1.55699555,3222.5,3221.8,0.7017]
[1641605261989,1.55699555,3222.5,3222.1,2.00479]
[1641605262191,0.264788,3222.6,3222.3,1.5]
[1641605262390,1.55147966,3222.8,3222.1,2.00479]
[1641605262590,1.55147966,3222.8,3222.5,1.5]
[1641605262792,2.00479,3223.2,3222.5,1.5]
[1641605262793,2.00479,3223.2,3222.7,1.5]
[1641605263189,2.00479,3223.2,3222.7,3.86777412]
[1641605263390,1.54802166,3223.3,3222.8,1.764788]
[1641605263792,1.54802166,3223.3,3222.8,0.264788]
[1641605263989,1.93963713,3223.5,3222.9,2.00479]
[1641605264190,2.00479,3223.7,3223.0,0.264788]
[1641605264590,0.264788,3223.6,3223.0,0.264788]
[1641605264790,0.905575,3223.6,3222.9,2.00479]
[1641605265291,0.264788,3223.6,3223.0,0.264788]
[1641605265495,0.76021577,3223.6,3223.0,0.264788]
[1641605265694,0.76021577,3223.6,3222.7,0.70873588]
[1641605265892,2.00479,3223.3,3222.7,0.70873588]
[1641605266092,2.00479,3223.3,3222.8,0.264788]
[1641605268898,2.00479,3223.3,3222.6,1.07447]
[1641605269605,2.00479,3223.3,3222.8,1.5]
[1641605269808,2.00479,3223.3,3222.8,1.21712133]
[1641605270007,2.00479,3223.3,3222.9,0.98824461]
[1641605270406,2.00479,3223.7,3222.9,0.98824461]
[1641605270407,1.02976098,3223.4,3222.9,0.98824461]
[1641605271408,1.02976098,3223.4,3223.0,4.964087]
[1641605271812,1.52516783,3223.6,3223.0,4.964087]
[1641605272011,1.52516783,3223.6,3223.1,2.00479]
[1641605272613,1.52516783,3223.6,3223.4,1.21712133]
[1641605272813,1.52516783,3223.6,3223.5,0.8181658]
[1641605274216,0.49540685,3223.6,3223.5,0.8181658]
[1641605274414,0.49540685,3223.6,3223.4,0.7666522]
[1641605275216,0.54766667,3223.5,3223.4,0.7666522]
[1641605275416,0.77828552,3223.6,3223.1,2.00479]
[1641605275818,0.77828552,3223.6,3223.2,1.21706714]
[1641605276017,0.49540685,3223.5,3223.2,6.18084614]
[1641605278219,1.8080465,3223.6,3223.2,2.6581399]
[1641605278422,1.8080465,3223.6,3223.1,15.34479]
[1641605278820,1.31263965,3223.6,3223.2,1.42996955]
[1641605279220,1.02976098,3223.6,3223.1,13.34]
[1641605280020,2.00479,3223.3,3223.1,13.34]
[1641605280421,1.02976098,3223.6,3223.0,1.21712133]
[1641605280621,0.49538536,3223.5,3223.0,1.21712133]
[1641605280823,0.49538536,3223.5,3222.7,12.44347711]
[1641605281622,0.49538536,3223.6,3222.7,12.44347711]
[1641605281823,0.28287867,3223.1,3222.7,1.21712133]
[1641605282023,2.01565367,3223.1,3222.7,1.21712133]
[1641605282423,1.37486667,3223.1,3222.7,1.21712133]
[1641605283122,1.091988,3223.1,3222.7,1.21712133]
[1641605283324,1.02976098,3223.4,3222.8,1.54997427]
[1641605283925,2.00479,3223.0,3222.8,1.54997427]
[1641605284123,0.264788,3223.3,3222.7,1.21712133]
[1641605284725,1.02976098,3223.4,3222.7,1.21712133]
[1641605284726,1.51825437,3223.6,3222.7,1.21712133]
[1641605284923,1.51825437,3223.6,3222.6,0.61387]
[1641605285127,0.28287867,3223.5,3222.6,0.61387]
[1641605285526,0.28287867,3223.5,3222.7,1.21712133]
[1641605285825,0.264788,3223.4,3222.7,1.21712133]
[1641605286030,2.00479,3223.3,3222.7,2.57731292]
[1641605286626,1.02976098,3223.5,3223.1,1.21712133]
[1641605287026,0.48849339,3223.3,3223.1,1.21712133]
[1641605287927,0.48849339,3223.3,3223.2,2.00479]
[1641605288128,0.48849339,3223.3,3223.2,3.36655502]
[1641605288428,0.48849339,3223.5,3223.2,3.36655502]
[1641605289428,1.02976098,3223.5,3223.2,3.36655502]
[1641605289627,1.02976098,3223.5,3223.2,0.54828347]
[1641605290028,3.03455098,3223.5,3223.2,0.54828347]
[1641605290426,3.03455098,3223.5,3222.6,13.95387]
[1641605290427,1.62158849,3223.0,3222.6,13.95387]
[1641605290626,1.62158849,3223.0,3222.6,0.61387]
[1641605290828,1.88637649,3223.0,3222.7,0.87469894]
[1641605291128,1.51825437,3223.4,3222.7,0.87469894]
[1641605291330,1.02976098,3223.4,3222.8,0.264788]
[1641605291529,1.29454898,3223.4,3222.8,0.264788]
[1641605292032,0.264788,3223.4,3222.8,0.264788]
[1641605295333,0.264788,3223.4,3222.8,1.81476467]
[1641605296433,0.264788,3223.4,3222.8,1.54997667]
[1641605296634,0.264788,3223.4,3222.7,13.91587477]
[1641605298233,1.02976098,3223.6,3223.1,13.34]
[1641605298434,1.02976098,3223.6,3223.1,14.2011]
[1641605299137,0.905575,3223.8,3223.1,0.8611]
[1641605299336,1.5,3223.4,3223.2,1.49292372]
[1641605299634,0.905575,3223.8,3223.2,1.49292372]
[1641605299635,0.640787,3223.8,3223.2,1.49292372]
[1641605300237,2.00479,3223.5,3223.2,1.49292372]
[1641605300936,0.264788,3223.4,3223.2,1.49292372]
[1641605301138,2.00479,3223.5,3223.2,0.05913178]
[1641605303240,0.43687575,3223.4,3223.2,0.05913178]
[1641605303441,2.00479,3223.5,3223.2,0.05913178]
[1641605307344,1.5,3223.4,3223.2,0.05913178]
[1641605307643,2.2115,3223.4,3223.2,0.05913178]
[1641605308243,2.00479,3223.3,3223.2,0.05913178]
[1641605309045,3.29464117,3223.3,3223.2,0.05913178]
[1641605309244,3.29464117,3223.3,3223.2,0.00309114]
[1641605309946,2.00479,3223.3,3223.2,0.00309114]
[1641605310546,3.50479,3223.3,3223.2,0.00309114]
[1641605310748,2.00479,3223.3,3223.2,0.00309114]
[1641605311149,1.54782141,3223.6,3223.2,0.00309114]
[1641605311350,1.54782141,3223.5,3223.2,0.85050312]
[1641605311850,1.93963713,3223.7,3223.2,0.85050312]
[1641605312251,4.52436877,3223.9,3223.6,2.00479]
[1641605312450,2.58042413,3223.9,3223.6,0.72723541]
[1641605312649,1.5,3223.7,3223.6,0.72723541]
[1641605313952,2.4084,3223.7,3221.2,3.87859303]
[1641605314154,2.00479,3222.7,3222.0,2.00479]
[1641605314354,2.72559,3222.7,3222.0,2.00479]
[1641605315757,2.00479,3223.0,3222.0,15.34479]
[1641605315957,2.00479,3223.0,3222.7,1.50044512]
[1641605316256,3.49002233,3223.8,3222.7,3.77002312]
[1641605316257,3.94442713,3223.8,3222.7,3.77002312]
[1641605316659,1.93963713,3222.9,3222.7,3.77002312]
[1641605316958,3.23091455,3223.4,3222.7,3.77002312]
[1641605317757,3.6136651,3223.6,3222.7,3.77002312]
[1641605317958,5.23570455,3223.8,3222.7,3.77002312]
[1641605318157,1.5,3223.0,3222.7,3.50523512]
[1641605318358,0.640787,3223.5,3222.7,3.50523512]
[1641605319160,3.23091455,3223.4,3222.7,3.50523512]
[1641605320662,3.23091455,3223.3,3222.8,13.604788]
[1641605320863,3.6136651,3223.6,3222.8,14.225588]
[1641605321062,3.6136651,3223.6,3222.8,0.885588]
[1641605321863,3.6136651,3223.8,3222.8,0.885588]
[1641605322064,1.5,3223.4,3222.8,0.885588]
[1641605322265,1.5,3223.4,3223.3,2.00479]
[1641605322666,3.6136651,3223.8,3223.3,2.96718036]
[1641605322863,4.2544521,3223.8,3223.3,2.96718036]
[1641605323063,4.56429444,3223.8,3223.3,2.96718036]
[1641605323664,1.5,3223.4,3223.3,2.96718036]
[1641605324264,1.5,3223.4,3223.3,0.42505808]
[1641605324965,1.84839344,3223.4,3222.7,4.00958]
[1641605325164,1.84839344,3223.4,3222.8,0.264788]
[1641605325165,1.5,3223.1,3222.8,0.264788]
[1641605326265,1.95323796,3222.9,3222.8,0.264788]
[1641605327369,0.34839344,3222.9,3222.8,0.264788]
[1641605327766,0.34839344,3222.9,3222.7,4.00958]
[1641605328968,0.34839344,3222.9,3222.7,1.8958244]
[1641605329568,1.95323796,3223.0,3222.7,3.44573381]
[1641605329774,2.60431728,3223.2,3222.8,1.54971245]
[1641605329971,2.60431728,3223.2,3222.9,13.34]
[1641605330169,3.2553966,3223.5,3222.9,13.604788]
[1641605330368,2.00479,3223.4,3223.0,4.964241]
[1641605330772,2.00479,3223.8,3223.1,0.264788]
[1641605333678,2.00479,3223.8,3223.1,1.25630772]
[1641605334077,2.00479,3223.8,3223.1,1.81446203]
[1641605334477,2.00479,3223.8,3223.4,2.00479]
[1641605334677,2.00479,3223.8,3223.5,1.06298094]
[1641605338281,5.25943754,3223.8,3223.5,1.06298094]
[1641605338481,2.60349924,3223.6,3223.5,0.25700255]
[1641605339383,2.60349924,3223.7,3223.5,1.48269015]
[1641605341183,4.60828924,3223.8,3223.5,1.48269015]
[1641605342989,0.640787,3223.7,3223.5,1.6902876]
[1641605343187,1.95245197,3223.6,3223.5,1.6902876]
[1641605344087,0.8562,3223.6,3223.5,1.6902876]
[1641605344289,0.863985,3223.6,3223.4,1.11704483]
[1641605344691,1.5,3223.5,3222.8,1.54984215]
[1641605344888,1.5,3223.5,3222.9,0.264788]
[1641605345291,1.5,3223.5,3223.0,0.99904965]
[1641605345690,1.5,3223.5,3223.0,1.26383765]
[1641605346392,0.007785,3223.6,3223.0,1.26383765]
[1641605346592,1.56373425,3223.3,3223.0,1.26383765]
[1641605347491,1.56492678,3223.2,3223.0,1.26383765]
[1641605347893,1.95466781,3223.4,3223.0,1.26383765]
[1641605348291,1.95466781,3223.4,3223.1,4.964164]
[1641605348493,1.95466781,3223.7,3223.3,1.54961399]
[1641605349094,1.95466781,3223.7,3223.4,0.264788]
[1641605349393,2.60349924,3224.0,3223.5,1.34422604]
[1641605349593,1.5,3223.9,3223.5,1.34422604]
[1641605349792,1.5,3223.9,3223.5,1.60901404]
[1641605350193,4.60828924,3224.1,3223.5,1.60901404]
[1641605350395,1.5,3224.0,3223.7,2.00479]
[1641605350595,1.5,3224.0,3223.8,0.264788]
[1641605350995,1.71990542,3224.0,3223.8,0.264788]
[1641605351696,1.71990542,3224.0,3223.7,2.00479]
[1641605352297,1.5,3223.8,3223.7,2.00479]
[1641605353397,1.71990542,3223.8,3223.7,2.00479]
[1641605353596,1.71990542,3223.8,3223.5,1.34422604]
[1641605354197,0.21990542,3223.8,3223.5,1.34422604]
[1641605355099,4.10349924,3223.9,3223.7,26.58809115]
[1641605355299,4.10349924,3223.9,3223.7,27.22549115]
[1641605356300,0.21990542,3223.8,3223.7,27.22549115]
[1641605357301,2.17773291,3223.8,3223.7,27.22549115]
[1641605358104,2.17773291,3223.8,3223.7,26.58809115]
[1641605358502,2.17773291,3223.8,3223.5,1.80012604]
[1641605358701,0.007785,3223.7,3223.5,1.80012604]
[1641605359602,1.5,3223.6,3223.5,1.80012604]
[1641605359803,3.67773291,3223.6,3223.5,1.80012604]
[1641605360004,3.67773291,3223.6,3223.5,1.24319466]
[1641605360203,2.17773291,3223.6,3223.5,1.24319466]
[1641605360609,4.18252291,3223.6,3223.5,1.24319466]
[1641605361604,3.96261749,3223.6,3223.5,1.24319466]
[1641605361804,2.60349924,3223.8,3223.5,2.79266939]
[1641605362006,1.98139924,3223.9,3223.8,0.002]
[1641605362204,3.25464754,3224.1,3223.8,0.002]
[1641605362405,2.16896616,3224.3,3223.8,0.002]
[1641605362607,2.16896616,3224.3,3223.9,0.264788]
[1641605363207,2.16896616,3224.3,3224.0,0.14062217]
[1641605363505,5.08026936,3224.4,3224.1,0.264788]
[1641605363707,1.5,3224.4,3224.2,1.39750004]
[1641605363908,1.5,3224.4,3224.2,2.42392221]
[1641605364309,1.5,3224.4,3224.3,0.14062217]
[1641605365110,1.498,3224.4,3224.3,0.14062217]
[1641605365511,2.00479,3224.5,3224.3,0.14062217]
[1641605365710,2.00479,3224.5,3224.3,0.99572217]
[1641605366109,2.00479,3224.5,3224.4,0.14062217]
[1641605367013,3.50279,3224.5,3224.4,0.14062217]
[1641605367212,3.50279,3224.5,3224.4,0.40541017]
[1641605367413,2.00479,3224.5,3224.4,0.40541017]
[1641605367614,2.00479,3224.5,3224.4,0.14062217]
[1641605368014,2.00479,3224.5,3224.3,0.40541017]
[1641605368215,2.00479,3224.5,3224.4,0.14062217]
[1641605368413,2.00479,3224.5,3224.4,0.04379328]
[1641605369217,3.95949114,3224.5,3224.4,0.04379328]
[1641605369615,5.45749114,3224.5,3224.4,0.04379328]
[1641605370319,3.50279,3224.5,3224.4,0.04379328]
[1641605371419,5.45749114,3224.5,3224.4,0.04379328]
[1641605374324,3.50279,3224.5,3224.4,0.04379328]
[1641605375124,3.50279,3224.5,3224.2,3.58338912]
[1641605375324,3.50279,3224.5,3224.2,2.6439761]
[1641605375726,2.00479,3224.5,3224.2,2.6439761]
[1641605375924,2.00479,3224.5,3224.3,0.264788]
[1641605379130,1.95470114,3224.7,3224.3,0.264788]
[1641605379331,1.47370114,3224.7,3224.3,3.361788]
[1641605379532,1.41670114,3224.7,3224.3,4.55049337]
[1641605379732,4.77523434,3225.0,3224.3,4.55049337]
[1641605379733,4.77523434,3225.0,3224.4,8.059009]
[1641605379931,1.56219934,3224.5,3224.4,8.059009]
[1641605380431,4.77523434,3225.0,3224.4,8.059009]
[1641605380631,4.77523434,3225.0,3224.5,16.701788]
[1641605380834,4.01313434,3225.0,3224.9,5.55840676]
[1641605381033,3.84810744,3225.9,3224.9,6.47389476]
[1641605381238,3.51360744,3225.9,3225.8,29.33206846]
[1641605381434,4.96059244,3225.9,3225.8,29.33206846]
[1641605381634,1.456285,3225.9,3225.8,29.33206846]
[1641605381834,1.456285,3225.9,3225.8,30.24636243]
[1641605382434,1.456285,3225.9,3225.8,31.42195043]
[1641605382934,5.58756492,3226.0,3225.8,31.42195043]
[1641605383235,1.456285,3225.9,3225.8,31.42195043]
[1641605383536,1.456285,3225.9,3225.8,28.34061087]
[1641605383836,1.456285,3225.9,3225.8,27.42981087]
[1641605384435,1.456285,3225.9,3225.8,23.90927659]
[1641605385237,1.89999707,3226.7,3225.8,23.90927659]
[1641605385437,1.89999707,3226.7,3225.8,26.11497887]
[1641605385738,1.89999707,3226.7,3225.8,24.56657659]
[1641605386537,69.35211443,3226.8,3225.8,24.56657659]
[1641605386739,4.3504873,3226.7,3225.8,24.56657659]
[1641605386935,6.3552773,3226.7,3225.9,2.00479]
[1641605387538,6.3552773,3226.7,3226.0,0.264788]
[1641605388541,1.5,3226.4,3226.0,0.264788]
[1641605388745,2.0853,3226.4,3225.8,23.90927659]
[1641605388944,2.00479,3226.0,3225.8,23.90927659]
[1641605389543,1.5,3225.9,3225.8,0.91429397]
[1641605390845,2.645577,3225.9,3225.8,0.91429397]
[1641605392545,2.645577,3225.9,3225.8,0.40163555]
[1641605392949,4.145577,3225.9,3225.8,0.40163555]
[1641605393549,4.145577,3225.9,3225.4,0.24263146]
[1641605393950,2.645577,3225.9,3225.5,0.14007362]
[1641605394249,4.145577,3225.9,3225.5,0.14007362]
[1641605394852,4.145577,3225.9,3225.6,1.26467815]
[1641605395053,2.645577,3225.9,3225.6,1.26467815]
[1641605395353,2.00479,3225.9,3225.6,1.26467815]
[1641605396554,3.50479,3225.9,3225.6,1.26467815]
[1641605396955,2.00479,3225.9,3225.6,1.26467815]
[1641605397155,1.55860117,3225.7,3225.6,1.26467815]
[1641605399959,2.00479,3225.9,3225.6,1.26467815]
[1641605401162,1.55709328,3225.7,3225.6,1.26467815]
[1641605401761,1.55709328,3225.7,3225.6,1.52946615]
[1641605401962,1.55709328,3225.7,3225.6,1.66952231]
[1641605402462,1.55709328,3225.8,3225.6,1.52946615]
[1641605402864,1.55709328,3225.8,3225.6,2.3322229]
[1641605403067,2.85870946,3226.3,3225.7,3.50479]
[1641605403267,2.85870946,3226.3,3226.0,3.04828721]
[1641605403465,2.85870946,3226.3,3226.0,1.54828721]
[1641605403664,2.85870946,3226.3,3226.1,0.264788]
[1641605404063,2.85870946,3226.3,3226.2,1.09086066]
[1641605404263,2.85870946,3226.3,3226.2,1.23091741]
[1641605404465,2.59766862,3226.5,3226.2,1.23091741]
[1641605404663,2.59766862,3226.5,3226.3,0.264788]
[1641605404863,2.59766862,3226.5,3226.3,1.046888]
[1641605405064,2.59766862,3226.5,3226.3,3.051678]
[1641605406268,0.26104084,3226.7,3226.3,2.93854113]
[1641605407167,0.96129418,3227.0,3226.3,2.93854113]
[1641605407566,1.60208118,3227.0,3226.3,2.93854113]
[1641605408067,4.1997498,3227.0,3226.3,2.93854113]
[1641605408667,1.5,3226.9,3226.3,2.93854113]
[1641605408866,4.1997498,3227.0,3226.3,2.78689]
[1641605409070,1.5,3226.9,3226.3,2.78689]
[1641605409468,4.1997498,3227.0,3226.3,1.046888]
[1641605409667,3.4854628,3227.0,3226.3,1.046888]
[1641605409868,3.4422628,3227.0,3226.3,1.046888]
[1641605410069,4.9422628,3227.0,3226.3,1.046888]
[1641605410268,3.4422628,3227.0,3226.3,1.046888]
[1641605410676,2.59766862,3226.9,3226.3,1.046888]
[1641605411069,2.00479,3226.7,3226.3,1.046888]
[1641605411573,1.56742445,3226.6,3226.3,1.046888]
[1641605414374,2.00479,3226.7,3226.3,1.046888]
[1641605414375,3.57221445,3226.7,3226.3,1.046888]
[1641605415279,2.00479,3226.7,3226.3,1.046888]
[1641605416381,3.57221445,3226.7,3226.3,1.046888]
[1641605417282,1.5,3226.5,3226.2,1.09086066]
[1641605417481,1.5,3226.3,3226.2,1.09086066]
[1641605417684,0.113137,3226.4,3226.2,1.09086066]
[1641605418080,1.613137,3226.4,3226.2,1.09086066]
[1641605419081,2.00479,3226.3,3226.2,0.63341826]
[1641605422083,2.00479,3226.3,3226.2,0.7735038]
[1641605434194,3.57221445,3226.3,3226.2,0.7735038]
[1641605435597,5.07221445,3226.3,3226.2,0.7735038]
[1641605435796,4.49321445,3226.3,3226.2,3.8e-06]
[1641605436196,4.49321445,3226.3,3225.7,33.05262397]
[1641605436497,1.5,3225.9,3225.3,2.00479]
[1641605436697,4.49321445,3226.3,3224.5,2.59757561]
[1641605436698,1.5,3225.7,3224.5,2.59757561]
[1641605436896,0.640787,3225.8,3224.4,1.24779303]
[1641605436897,1.5,3225.3,3224.4,1.24779303]
[1641605437098,0.113137,3225.2,3224.9,1.29189046]
[1641605437396,2.00479,3225.1,3224.9,1.29189046]
[1641605437597,2.00479,3225.1,3224.5,1.29189046]
[1641605437799,2.00479,3225.1,3224.5,0.264788]
[1641605437996,1.5,3224.8,3224.4,0.4662]
[1641605438196,1.5,3224.8,3224.3,0.78159303]
[1641605438696,0.113137,3224.7,3224.4,1.45737771]
[1641605438897,0.753924,3224.7,3224.4,1.45737771]
[1641605439301,2.00479,3224.5,3224.4,1.45737771]
[1641605439501,2.71109,3224.5,3224.4,1.45737771]
[1641605439701,2.71109,3224.5,3224.4,1.72216571]
[1641605440902,2.71109,3224.5,3224.4,1.45737771]
[1641605442203,2.00479,3224.5,3224.4,1.45737771]
[1641605444102,3.017827,3224.5,3224.4,1.45737771]
[1641605445204,4.517827,3224.5,3224.4,7.771e-05]
[1641605445404,17.857827,3224.5,3224.4,7.771e-05]
[1641605449912,19.40789497,3224.5,3224.4,7.771e-05]
[1641605450714,17.857827,3224.5,3224.4,7.771e-05]
[1641605451513,19.69867267,3224.5,3222.8,34.9207]
[1641605451712,1.5,3223.8,3222.9,1.32542544]
[1641605452112,1.5,3224.0,3222.9,1.32542544]
[1641605452514,1.5,3223.7,3222.9,1.32542544]
[1641605452815,0.753924,3223.6,3223.0,0.264788]
[1641605453215,3.50479,3223.4,3222.9,1.32542544]
[1641605453414,0.113137,3223.3,3222.9,1.32542544]
[1641605453616,1.5,3223.1,3222.9,1.32542544]
[1641605453817,0.113137,3223.0,3222.2,0.78159303]
[1641605454017,1.5,3222.8,3222.2,0.78159303]
[1641605454318,0.113137,3222.7,3222.2,0.78159303]
[1641605454516,0.810137,3222.7,3222.2,0.78159303]
[1641605454716,0.697,3222.7,3222.2,0.78159303]
[1641605455120,0.697,3222.7,3222.0,1.51429847]
[1641605455318,2.00479,3222.5,3222.3,0.264788]
[1641605456119,2.00479,3222.5,3222.4,0.13991642]
[1641605458925,2.00479,3222.5,3222.3,0.13991642]
[1641605459326,2.00479,3222.5,3222.4,0.13991642]
[1641605459926,2.00479,3222.5,3222.2,0.13991642]
[1641605460127,2.117927,3222.5,3222.4,0.13991642]
[1641605460626,2.117927,3222.5,3222.3,0.13991642]
[1641605461028,2.117927,3222.5,3222.2,0.13991642]
[1641605461228,2.117927,3222.5,3222.4,0.13991642]
[1641605461229,2.00479,3222.5,3222.4,0.13991642]
[1641605461429,2.00479,3222.5,3222.3,0.13991642]
[1641605461628,2.00479,3222.5,3222.4,0.264788]
[1641605461828,2.00479,3222.5,3222.4,0.826488]
[1641605462029,2.00479,3223.4,3222.4,0.826488]
[1641605462629,2.00479,3223.4,3222.5,0.13991642]
[1641605462830,2.00479,3223.4,3222.6,1.06728478]
[1641605463031,0.753924,3223.3,3222.6,1.06728478]
[1641605463230,0.753924,3223.3,3222.7,0.40470442]
[1641605463831,0.753924,3223.3,3222.8,0.13991642]
[1641605464532,0.753924,3223.3,3222.7,0.13991642]
[1641605464732,1.586924,3223.3,3222.6,1.06728478]
[1641605465033,14.926924,3223.3,3222.8,0.13967386]
[1641605465231,2.00479,3222.9,3222.7,0.13967386]
[1641605465831,2.117927,3222.9,3222.7,0.13967386]
[1641605466735,2.117927,3222.9,3222.6,1.06728478]
[1641605467332,4.122717,3222.9,3222.6,1.06728478]
[1641605468433,1.5,3222.7,3222.6,1.06728478]
[1641605468635,13.34,3222.6,3221.3,32.5035]
[1641605468833,1.5,3221.8,3221.3,32.5035]
[1641605469033,0.640787,3221.7,3221.4,0.13961494]
[1641605469434,2.00479,3221.5,3221.4,0.13961494]
[1641605469636,2.00479,3221.5,3220.9,0.13961494]
[1641605469837,2.00479,3221.5,3220.9,0.264788]
[1641605470236,2.00479,3221.5,3221.0,0.13952905]
[1641605470437,2.00479,3221.5,3221.1,0.92871064]
[1641605471038,2.00479,3221.5,3221.2,0.13952905]
[1641605471737,2.00479,3221.5,3221.1,0.92871064]
[1641605476338,2.00479,3221.5,3221.1,1.19349864]
[1641605479543,2.00479,3221.5,3221.1,0.92871064]
[1641605481247,2.00479,3221.5,3221.1,1.19349864]
[1641605481448,2.00479,3221.5,3221.1,0.92871064]
[1641605481647,0.640787,3221.4,3221.1,0.92871064]
[1641605483247,2.00479,3221.5,3221.1,0.92871064]
[1641605483747,0.640787,3221.4,3221.1,0.92871064]
[1641605483947,2.140787,3221.4,3221.1,0.92871064]
[1641605484746,3.69216315,3221.4,3221.1,0.92871064]
[1641605484948,2.19216315,3221.4,3221.1,0.92871064]
[1641605485148,3.69216315,3221.4,3221.1,0.92871064]
[1641605485349,2.00479,3221.2,3221.1,0.92871064]
[1641605485549,2.72309,3221.2,3221.1,0.92871064]
[1641605486954,4.22309,3221.2,3221.1,0.92871064]
[1641605487153,13.34,3221.1,3220.2,66.1922]
[1641605487352,1.5,3220.7,3220.1,0.459]
[1641605487551,2.00479,3220.4,3220.0,0.4616]
[1641605487752,2.79929,3220.4,3220.0,0.4616]
[1641605487954,2.79929,3220.4,3219.7,2.00479]
[1641605488153,2.79929,3220.4,3220.1,1.09384635]
[1641605488555,14.84,3220.3,3220.1,1.09384635]
[1641605489457,2.00479,3220.2,3220.1,1.09384635]
[1641605497264,2.00479,3220.2,3220.1,1.35863435]
[1641605498268,2.00479,3220.2,3220.1,1.09384635]
[1641605502370,2.00479,3220.2,3220.1,1.23348555]
[1641605503471,2.00479,3220.2,3220.1,1.35863435]
[1641605503671,2.00479,3220.2,3220.1,1.49826798]
[1641605504075,2.00479,3220.2,3220.1,1.23347998]
[1641605508077,2.00479,3220.8,3220.1,1.23347998]
[1641605508275,0.640787,3220.7,3220.2,0.264788]
[1641605508676,0.640787,3220.7,3220.2,0.40442163]
[1641605508878,0.640787,3220.7,3220.3,0.13963363]
[1641605509075,2.00479,3220.8,3220.4,0.264788]
[1641605509575,2.00479,3220.8,3220.5,0.13963363]
[1641605509976,2.00479,3220.8,3220.6,0.264788]
[1641605510178,2.00479,3220.8,3220.7,1.17511174]
[1641605510377,2.00479,3220.8,3220.7,1.31474537]
[1641605510579,2.645577,3220.8,3220.7,1.31474537]
[1641605510779,2.00479,3220.8,3220.7,1.31474537]
[1641605511979,2.00479,3220.8,3220.7,1.17511174]
[1641605512382,2.00479,3220.8,3220.7,1.31511901]
[1641605512780,2.00479,3220.9,3220.7,3.66141901]
[1641605512981,2.00479,3220.9,3220.8,0.264788]
[1641605513180,2.00479,3220.9,3220.7,3.52800644]
[1641605513382,32.84799061,3221.3,3220.8,0.14000727]
[1641605513683,1.03169061,3221.3,3220.8,2.40958527]
[1641605513881,1.03169061,3221.3,3220.8,3.90958527]
[1641605514483,1.03169061,3221.3,3220.9,0.14000727]
[1641605514685,2.00479,3221.6,3221.0,0.264788]
[1641605515287,2.00479,3221.6,3221.1,0.14000727]
[1641605515487,2.00479,3221.6,3221.2,0.264788]
[1641605515688,2.00479,3221.6,3221.2,1.46176108]
[1641605516087,2.00479,3221.6,3221.3,0.14000727]
[1641605516387,2.00479,3221.6,3221.4,0.264788]
[1641605516989,2.00479,3221.6,3221.5,0.14000727]
[1641605517789,1.67247761,3221.7,3221.5,0.14000727]
[1641605517990,1.03169061,3221.7,3221.6,0.264788]
[1641605518591,1.03169061,3221.7,3221.6,0.40479527]
[1641605518795,3.93519026,3221.9,3221.6,0.40479527]
[1641605518796,2.645577,3221.9,3221.6,0.40479527]
[1641605519393,2.910365,3221.9,3221.6,0.14000727]
[1641605519593,2.910365,3221.9,3221.7,0.14000727]
[1641605519995,2.910365,3221.9,3221.7,1.14599612]
[1641605520194,4.19997826,3221.9,3221.7,1.00598885]
[1641605520795,3.93519026,3221.9,3221.8,0.14000727]
[1641605521294,2.645577,3221.9,3221.7,0.455481]
[1641605521494,3.337177,3221.9,3221.7,0.455481]
[1641605522296,0.264788,3221.8,3221.7,8.1e-05]
[1641605524201,2.57201853,3221.9,3221.7,8.1e-05]
[1641605525404,1.56416747,3221.8,3221.7,8.1e-05]
[1641605525703,1.82895547,3221.8,3221.7,8.1e-05]
[1641605526305,0.264788,3221.8,3221.7,8.1e-05]
[1641605527506,2.00479,3221.9,3221.7,8.1e-05]
[1641605528006,2.00479,3221.9,3221.8,0.264788]
[1641605528506,0.56722853,3222.1,3221.8,1.764788]
[1641605528707,66.3741,3223.6,3222.0,1.5]
[1641605529007,67.8741,3223.6,3222.1,1.81495449]
[1641605529206,1.95430564,3222.2,3222.1,0.264788]
[1641605529406,0.5593625,3222.3,3222.1,0.264788]
[1641605529607,0.5593625,3222.3,3221.8,1.55033472]
[1641605529608,0.5593625,3222.3,3222.2,4.00958]
[1641605530009,2.60574085,3222.4,3222.2,4.00958]
[1641605530511,3.24708577,3222.7,3222.2,5.22449045]
[1641605530909,0.73755357,3223.2,3222.2,5.22449045]
[1641605531606,0.73755357,3223.2,3223.0,2.00479]
[1641605531807,0.73755357,3223.2,3223.1,1.40211501]
[1641605533809,0.73755357,3223.2,3223.1,0.8938]
[1641605534411,0.73755357,3223.2,3223.1,2.10253302]
[1641605534616,0.93274913,3223.2,3223.1,2.10253302]
[1641605534813,0.19519556,3223.2,3223.1,2.10253302]
[1641605535815,0.73755357,3223.5,3223.1,2.10253302]
[1641605537318,1.30639537,3223.2,3223.1,2.10253302]
[1641605538118,0.19519556,3223.4,3223.1,2.10253302]
[1641605538321,0.19519556,3223.3,3223.1,2.10253302]
[1641605538520,0.93274913,3223.3,3223.1,2.10253302]
[1641605539220,0.19519556,3223.2,3223.1,2.10253302]
[1641605540723,0.93274913,3223.2,3223.1,2.10253302]
[1641605540924,0.19519556,3223.2,3223.1,2.10253302]
[1641605541536,1.95959305,3223.7,3223.1,2.10253302]
[1641605541724,1.95959305,3223.6,3223.1,2.24241271]
[1641605541924,1.95959305,3223.6,3223.2,0.13987969]
[1641605542123,1.95959305,3223.6,3223.2,0.90232612]
[1641605542526,1.22969305,3223.6,3223.1,1.20873302]
[1641605542726,1.22969305,3223.6,3223.3,4.963702]
[1641605542925,2.61240462,3223.9,3223.4,0.76244643]
[1641605543126,2.61240462,3223.9,3223.2,5.72622543]
[1641605543328,1.30640458,3223.8,3223.4,0.76244643]
[1641605543629,1.04512366,3223.5,3223.2,0.76244643]
[1641605543827,1.04512366,3223.5,3223.4,2.00479]
[1641605544429,1.04512366,3223.5,3223.4,2.76723643]
[1641605544628,1.04512366,3223.5,3223.4,3.39893643]